[Event "ONJK 2024 ABC"]
[Site "Velp, Netherlands"]
[Date "2024.08.03"]
[Round "2.15"]
[White "Hesse, Frederik"]
[Black "Roebers, Bregje"]
[Result "0-1"]
[TimeControl "90 minutes + 30 seconds"]
[WhiteElo "1684"]
[BlackElo "1796"]

1. d4 {[%clk 01:30:56]} {[%emt 00:00:04]} Nf6 {[%clk 01:27:49]} {[%emt
00:03:11]} 2. Nf3 {[%clk 01:31:11]} {[%emt 00:00:15]} g6 {[%clk 01:27:46]}
{[%emt 00:00:32]} 3. Bf4 {[%clk 01:28:54]} {[%emt 00:02:48]} Bg7 {[%clk
01:23:28]} {[%emt 00:04:49]} 4. c4 {[%clk 01:28:41]} {[%emt 00:00:43]} c6
{[%clk 01:20:22]} {[%emt 00:03:35]} 5. Nc3 {[%clk 01:28:08]} {[%emt 00:01:03]}
d5 {[%clk 01:17:25]} {[%emt 00:03:26]} 6. e3 {[%clk 01:28:10]} {[%emt
00:00:29]} Bg4 {[%clk 01:12:23]} {[%emt 00:05:32]} 7. h3 {[%clk 01:27:51]}
{[%emt 00:00:49]} Bxf3 {[%clk 01:10:30]} {[%emt 00:02:23]} 8. Qxf3 {[%clk
01:27:59]} {[%emt 00:00:23]} O-O {[%clk 01:06:49]} {[%emt 00:04:12]} 9. Bd3
{[%clk 01:26:11]} {[%emt 00:02:17]} e6 {[%clk 00:56:29]} {[%emt 00:10:50]} 10.
O-O {[%clk 01:26:25]} {[%emt 00:00:16]} Nbd7 {[%clk 00:55:52]} {[%emt
00:01:07]} 11. Bg5 {[%clk 01:25:17]} {[%emt 00:01:38]} Qb6 {[%clk 00:50:44]}
{[%emt 00:05:38]} 12. Qe2 {[%clk 01:23:39]} {[%emt 00:02:08]} c5 {[%clk
00:47:57]} {[%emt 00:03:17]} 13. dxc5 {[%clk 01:19:04]} {[%emt 00:05:05]} Qxc5
{[%clk 00:47:04]} {[%emt 00:01:23]} 14. cxd5 {[%clk 01:10:36]} {[%emt
00:08:58]} Nxd5 {[%clk 00:46:15]} {[%emt 00:01:17]} 15. Nxd5 {[%clk 01:10:18]}
{[%emt 00:00:49]} Qxd5 {[%clk 00:45:36]} {[%emt 00:01:09]} 16. Be7 {[%clk
01:09:10]} {[%emt 00:01:38]} Rfe8 {[%clk 00:44:19]} {[%emt 00:01:46]} 17. Ba3
{[%clk 01:08:27]} {[%emt 00:01:15]} a6 {[%clk 00:33:18]} {[%emt 00:11:32]} 18.
Bc4 {[%clk 01:06:48]} {[%emt 00:02:09]} Qa5 {[%clk 00:32:34]} {[%emt 00:01:14]}
19. Rfd1 {[%clk 01:05:35]} {[%emt 00:01:43]} Ne5 {[%clk 00:32:21]} {[%emt
00:00:43]} 20. Bd3 {[%clk 00:56:43]} {[%emt 00:09:22]} Rad8 {[%clk 00:27:08]}
{[%emt 00:05:43]} 21. Rac1 {[%clk 00:55:38]} {[%emt 00:01:35]} b5 {[%clk
00:25:47]} {[%emt 00:01:51]} 22. Rc5 {[%clk 00:53:41]} {[%emt 00:02:26]} Rc8
{[%clk 00:22:52]} {[%emt 00:03:26]} 23. Rdc1 {[%clk 00:53:08]} {[%emt
00:01:03]} Rxc5 {[%clk 00:22:19]} {[%emt 00:01:03]} 24. Rxc5 {[%clk 00:52:52]}
{[%emt 00:00:46]} Rd8 {[%clk 00:22:11]} {[%emt 00:00:37]} 25. Be4 {[%clk
00:47:31]} {[%emt 00:05:52]} Nd7 {[%clk 00:16:22]} {[%emt 00:06:20]} 26. Rc6
{[%clk 00:46:23]} {[%emt 00:01:38]} b4 {[%clk 00:15:09]} {[%emt 00:01:43]} 27.
Rxa6 {[%clk 00:46:39]} {[%emt 00:00:13]} Qe5 {[%clk 00:15:10]} {[%emt
00:00:28]} 28. Bxb4 {[%clk 00:44:14]} {[%emt 00:02:56]} Qxe4 {[%clk 00:15:26]}
{[%emt 00:00:13]} 29. Bc3 {[%clk 00:43:47]} {[%emt 00:00:58]} Nc5 {[%clk
00:14:41]} {[%emt 00:01:14]} 30. Ra5 {[%clk 00:41:08]} {[%emt 00:03:10]} Bxc3
{[%clk 00:13:34]} {[%emt 00:01:38]} 31. bxc3 {[%clk 00:40:50]} {[%emt
00:00:47]} Qb1+ {[%clk 00:13:26]} {[%emt 00:00:38]} 32. Kh2 {[%clk 00:40:58]}
{[%emt 00:00:23]} Ne4 {[%clk 00:13:07]} {[%emt 00:00:49]} 33. Qf3 {[%clk
00:37:52]} {[%emt 00:03:34]} Rd1 {[%clk 00:11:01]} {[%emt 00:02:37]} 34. g4
{[%clk 00:35:41]} {[%emt 00:02:41]} Rd2 {[%clk 00:09:54]} {[%emt 00:01:37]} 35.
Rb5 {[%clk 00:31:31]} {[%emt 00:04:40]} Qf1 {[%clk 00:08:14]} {[%emt 00:02:10]}
36. Rb8+ {[%clk 00:30:44]} {[%emt 00:01:18]} Kg7 {[%clk 00:08:33]} {[%emt
00:00:10]} 37. Qxe4 {[%clk 00:30:13]} {[%emt 00:01:01]} Qxf2+ {[%clk 00:08:46]}
{[%emt 00:00:17]} 38. Kh1 {[%clk 00:30:07]} {[%emt 00:00:37]} Rd1# {[%clk
00:09:00]} {[%emt 00:00:14]} 0-1

[Event "ONJK 2024 ABC"]
[Site "Velp, Netherlands"]
[Date "2024.08.03"]
[Round "2.16"]
[White "De Wit, Evan"]
[Black "Peeters, Yumi"]
[Result "1-0"]
[TimeControl "90 minutes + 30 seconds"]
[WhiteElo "1782"]
[BlackElo "1671"]

1. d4 {[%clk 01:30:48]} {[%emt 00:00:10]} d5 {[%clk 01:30:54]} {[%emt
00:00:07]} 2. c4 {[%clk 01:31:03]} {[%emt 00:00:15]} e6 {[%clk 01:31:07]}
{[%emt 00:00:17]} 3. cxd5 {[%clk 01:30:50]} {[%emt 00:00:43]} exd5 {[%clk
01:31:29]} {[%emt 00:00:08]} 4. Nc3 {[%clk 01:31:13]} {[%emt 00:00:07]} Nf6
{[%clk 01:31:45]} {[%emt 00:00:14]} 5. Bg5 {[%clk 01:31:32]} {[%emt 00:00:10]}
Bb4 {[%clk 01:30:10]} {[%emt 00:02:07]} 6. a3 {[%clk 01:30:39]} {[%emt
00:01:22]} Ba5 {[%clk 01:28:34]} {[%emt 00:02:05]} 7. e3 {[%clk 01:30:07]}
{[%emt 00:01:02]} Be6 {[%clk 01:27:36]} {[%emt 00:01:28]} 8. Bd3 {[%clk
01:29:33]} {[%emt 00:01:03]} Nc6 {[%clk 01:23:25]} {[%emt 00:04:42]} 9. Nge2
{[%clk 01:28:39]} {[%emt 00:01:23]} h6 {[%clk 01:21:27]} {[%emt 00:02:28]} 10.
Bh4 {[%clk 01:28:26]} {[%emt 00:00:41]} g5 {[%clk 01:20:20]} {[%emt 00:01:40]}
11. Bg3 {[%clk 01:28:46]} {[%emt 00:00:09]} Qd7 {[%clk 01:20:15]} {[%emt
00:00:36]} 12. b4 {[%clk 01:28:26]} {[%emt 00:00:50]} Bb6 {[%clk 01:20:05]}
{[%emt 00:00:41]} 13. Rc1 {[%clk 01:27:26]} {[%emt 00:01:29]} h5 {[%clk
01:18:41]} {[%emt 00:01:54]} 14. h4 {[%clk 01:27:43]} {[%emt 00:00:13]} gxh4
{[%clk 01:17:00]} {[%emt 00:02:11]} 15. Bxh4 {[%clk 01:26:15]} {[%emt
00:01:58]} Ng4 {[%clk 01:16:59]} {[%emt 00:00:31]} 16. Nf4 {[%clk 01:13:53]}
{[%emt 00:12:52]} Ne7 {[%clk 01:14:24]} {[%emt 00:03:06]} 17. Qe2 {[%clk
01:11:17]} {[%emt 00:03:05]} Nf5 {[%clk 01:13:07]} {[%emt 00:01:47]} 18. Bxf5
{[%clk 01:10:28]} {[%emt 00:01:19]} Bxf5 {[%clk 01:13:27]} {[%emt 00:00:10]} 19.
f3 {[%clk 01:08:32]} {[%emt 00:02:25]} Nh6 {[%clk 01:07:10]} {[%emt 00:06:47]}
20. Ncxd5 {[%clk 01:06:08]} {[%emt 00:02:54]} Ng8 {[%clk 01:06:41]} {[%emt
00:00:59]} 21. Nf6+ {[%clk 00:59:08]} {[%emt 00:07:30]} Nxf6 {[%clk 01:06:39]}
{[%emt 00:00:32]} 22. Bxf6 {[%clk 00:59:36]} {[%emt 00:00:02]} Rh6 {[%clk
01:06:06]} {[%emt 00:01:04]} 23. Nxh5 {[%emt 00:02:17]} 1-0

[Event "ONJK 2024 ABC"]
[Site "Velp, Netherlands"]
[Date "2024.08.03"]
[Round "2.17"]
[White "De Jong, Lode"]
[Black "Hardeman, Imara"]
[Result "1-0"]
[TimeControl "90 minutes + 30 seconds"]
[WhiteElo "1755"]
[BlackElo "1549"]

1. d4 {[%clk 01:30:58]} {[%emt 00:00:01]} d5 {[%clk 01:30:56]} {[%emt
00:00:05]} 2. c4 {[%clk 01:31:22]} {[%emt 00:00:06]} c6 {[%clk 01:31:23]}
{[%emt 00:00:03]} 3. Nf3 {[%clk 01:31:48]} {[%emt 00:00:03]} Nf6 {[%clk
01:31:47]} {[%emt 00:00:06]} 4. g3 {[%clk 01:32:14]} {[%emt 00:00:05]} Bg4
{[%clk 01:32:11]} {[%emt 00:00:06]} 5. Ne5 {[%clk 01:32:36]} {[%emt 00:00:08]}
Bf5 {[%clk 01:32:23]} {[%emt 00:00:18]} 6. cxd5 {[%clk 01:32:21]} {[%emt
00:00:45]} cxd5 {[%clk 01:32:15]} {[%emt 00:00:38]} 7. Nc3 {[%clk 01:32:44]}
{[%emt 00:00:07]} e6 {[%clk 01:32:13]} {[%emt 00:00:33]} 8. Qa4+ {[%clk
01:30:12]} {[%emt 00:03:01]} Nbd7 {[%clk 01:31:22]} {[%emt 00:01:21]} 9. f3
{[%clk 01:14:52]} {[%emt 00:15:50]} h6 {[%clk 01:23:25]} {[%emt 00:08:26]} 10.
e4 {[%clk 01:10:34]} {[%emt 00:04:48]} dxe4 {[%clk 01:19:32]} {[%emt 00:04:23]}
11. fxe4 {[%clk 01:09:59]} {[%emt 00:01:06]} Bh7 {[%clk 01:15:09]} {[%emt
00:04:53]} 12. Nxd7 {[%clk 01:06:44]} {[%emt 00:03:45]} Nxd7 {[%clk 01:15:23]}
{[%emt 00:00:16]} 13. Bg2 {[%clk 01:06:33]} {[%emt 00:00:41]} Be7 {[%clk
01:13:41]} {[%emt 00:02:12]} 14. O-O {[%clk 01:05:28]} {[%emt 00:01:34]} O-O
{[%clk 01:12:30]} {[%emt 00:01:41]} 15. Bf4 {[%clk 01:04:52]} {[%emt 00:01:06]}
Nb6 {[%clk 01:09:36]} {[%emt 00:03:25]} 16. Qd1 {[%clk 01:04:46]} {[%emt
00:00:35]} Bg5 {[%clk 01:03:28]} {[%emt 00:06:38]} 17. Bxg5 {[%clk 00:58:39]}
{[%emt 00:06:38]} Qxg5 {[%clk 01:03:40]} {[%emt 00:00:18]} 18. Qe2 {[%clk
00:58:50]} {[%emt 00:00:18]} Rac8 {[%clk 00:59:23]} {[%emt 00:04:48]} 19. Nb5
{[%clk 00:51:38]} {[%emt 00:07:42]} a6 {[%clk 00:54:28]} {[%emt 00:05:25]} 20.
Nd6 {[%clk 00:51:14]} {[%emt 00:00:54]} Rc7 {[%clk 00:54:22]} {[%emt 00:00:36]}
21. Qf3 {[%clk 00:43:20]} {[%emt 00:08:24]} Nc4 {[%clk 00:49:54]} {[%emt
00:04:57]} 22. Rac1 {[%clk 00:36:29]} {[%emt 00:07:22]} Nd2 {[%clk 00:34:46]}
{[%emt 00:15:38]} 23. Qf4 {[%clk 00:36:40]} {[%emt 00:00:19]} Qxf4 {[%clk
00:34:43]} {[%emt 00:00:33]} 24. gxf4 {[%clk 00:36:57]} {[%emt 00:00:12]} Rxc1
{[%clk 00:28:59]} {[%emt 00:06:15]} 25. Rxc1 {[%clk 00:37:17]} {[%emt
00:00:10]} b5 {[%clk 00:23:29]} {[%emt 00:06:01]} 26. Kf2 {[%clk 00:27:00]}
{[%emt 00:10:47]} Rd8 {[%clk 00:21:00]} {[%emt 00:02:59]} 27. Ke3 {[%clk
00:26:27]} {[%emt 00:01:02]} Nc4+ {[%clk 00:19:23]} {[%emt 00:02:08]} 28. Nxc4
{[%clk 00:26:48]} {[%emt 00:00:09]} bxc4 {[%clk 00:19:47]} {[%emt 00:00:05]} 29.
Rxc4 {[%clk 00:27:14]} {[%emt 00:00:05]} Kf8 {[%clk 00:18:45]} {[%emt
00:01:32]} 30. Bf1 {[%clk 00:26:16]} {[%emt 00:01:28]} Rb8 {[%clk 00:17:00]}
{[%emt 00:02:15]} 31. b3 {[%clk 00:24:22]} {[%emt 00:02:24]} Bg6 {[%clk
00:15:33]} {[%emt 00:01:57]} 32. Ra4 {[%clk 00:24:12]} {[%emt 00:00:39]} Rc8
{[%clk 00:14:44]} {[%emt 00:01:20]} 33. Bc4 {[%clk 00:24:14]} {[%emt 00:00:28]}
Ke7 {[%clk 00:13:32]} {[%emt 00:01:42]} 34. Rxa6 {[%clk 00:24:25]} {[%emt
00:00:19]} Rc7 {[%clk 00:13:43]} {[%emt 00:00:20]} 35. a4 {[%clk 00:24:17]}
{[%emt 00:00:37]} Kd7 {[%clk 00:13:51]} {[%emt 00:00:21]} 36. a5 {[%clk
00:23:56]} {[%emt 00:00:51]} Kc8 {[%clk 00:13:58]} {[%emt 00:00:23]} 37. Rb6
{[%clk 00:23:12]} {[%emt 00:01:15]} Ra7 {[%clk 00:13:58]} {[%emt 00:00:30]} 38.
b4 {[%clk 00:21:26]} {[%emt 00:02:16]} Kc7 {[%clk 00:13:35]} {[%emt 00:00:53]}
39. Ra6 {[%clk 00:21:35]} {[%emt 00:00:21]} Rb7 {[%clk 00:13:43]} {[%emt
00:00:22]} 40. b5 {[%clk 00:21:55]} {[%emt 00:00:09]} Kb8 {[%clk 00:12:38]}
{[%emt 00:01:36]} 41. Rc6 {[%clk 00:21:42]} {[%emt 00:00:41]} Ka7 {[%clk
00:12:07]} {[%emt 00:01:03]} 42. b6+ {[%clk 00:21:45]} {[%emt 00:00:26]} Kb8
{[%clk 00:12:20]} {[%emt 00:00:18]} 43. Rd6 {[%clk 00:21:58]} {[%emt 00:00:17]}
Kc8 {[%clk 00:12:21]} {[%emt 00:00:29]} 44. Ba6 {[%clk 00:22:20]} {[%emt
00:00:07]} 1-0

[Event "ONJK 2024 ABC"]
[Site "Velp, Netherlands"]
[Date "2024.08.03"]
[Round "2.18"]
[White "Van Ewijk, Abel"]
[Black "Dijkhuijsen, Thomas"]
[Result "1/2-1/2"]
[TimeControl "90 minutes + 30 seconds"]
[WhiteElo "1484"]
[BlackElo "1750"]

1. e4 {[%clk 01:30:57]} {[%emt 00:00:01]} c5 {[%clk 01:30:57]} {[%emt
00:00:04]} 2. Nf3 {[%clk 01:31:23]} {[%emt 00:00:04]} d6 {[%clk 01:31:22]}
{[%emt 00:00:06]} 3. d4 {[%clk 01:31:32]} {[%emt 00:00:21]} cxd4 {[%clk
01:31:44]} {[%emt 00:00:08]} 4. Nxd4 {[%clk 01:31:57]} {[%emt 00:00:05]} Nf6
{[%clk 01:32:04]} {[%emt 00:00:09]} 5. Nc3 {[%clk 01:32:19]} {[%emt 00:00:08]}
Nc6 {[%clk 01:32:07]} {[%emt 00:00:27]} 6. Bb5 {[%clk 01:32:32]} {[%emt
00:00:16]} Bd7 {[%clk 01:32:26]} {[%emt 00:00:12]} 7. Be3 {[%clk 01:32:17]}
{[%emt 00:00:46]} Nxd4 {[%clk 01:31:10]} {[%emt 00:01:45]} 8. Bxd7+ {[%clk
01:32:13]} {[%emt 00:00:34]} Qxd7 {[%clk 01:31:17]} {[%emt 00:00:23]} 9. Bxd4
{[%clk 01:31:39]} {[%emt 00:01:04]} e5 {[%clk 01:30:43]} {[%emt 00:01:03]} 10.
Be3 {[%clk 01:31:57]} {[%emt 00:00:13]} Be7 {[%clk 01:29:42]} {[%emt 00:01:31]}
11. Bg5 {[%clk 01:23:21]} {[%emt 00:09:06]} O-O {[%clk 01:28:08]} {[%emt
00:02:03]} 12. O-O {[%clk 01:23:16]} {[%emt 00:00:35]} Rfe8 {[%clk 01:27:09]}
{[%emt 00:01:30]} 13. Qf3 {[%clk 01:23:03]} {[%emt 00:00:44]} Qg4 {[%clk
01:24:56]} {[%emt 00:02:42]} 14. Qxg4 {[%clk 01:22:34]} {[%emt 00:00:58]} Nxg4
{[%clk 01:25:18]} {[%emt 00:00:08]} 15. Bxe7 {[%clk 01:22:57]} {[%emt
00:00:07]} Rxe7 {[%clk 01:25:38]} {[%emt 00:00:10]} 16. Nd5 {[%clk 01:23:23]}
{[%emt 00:00:05]} Rd7 {[%clk 01:25:35]} {[%emt 00:00:34]} 17. h3 {[%clk
01:23:29]} {[%emt 00:00:23]} Nf6 {[%clk 01:25:32]} {[%emt 00:00:33]} 18. Nxf6+
{[%clk 01:23:40]} {[%emt 00:00:19]} gxf6 {[%clk 01:25:55]} {[%emt 00:00:07]} 19.
c4 {[%clk 01:23:46]} {[%emt 00:00:24]} Rc8 {[%clk 01:25:02]} {[%emt 00:01:22]}
20. b3 {[%clk 01:23:59]} {[%emt 00:00:18]} a5 {[%clk 01:24:23]} {[%emt
00:01:09]} 21. Rfd1 {[%clk 01:23:10]} {[%emt 00:01:19]} b6 {[%clk 01:22:04]}
{[%emt 00:02:49]} 22. Rd5 {[%clk 01:22:23]} {[%emt 00:01:16]} Rc5 {[%clk
01:21:20]} {[%emt 00:01:14]} 23. Rad1 {[%clk 01:21:30]} {[%emt 00:01:23]} Rc6
{[%clk 01:20:17]} {[%emt 00:01:33]} 24. f3 {[%clk 01:21:15]} {[%emt 00:00:46]}
Kf8 {[%clk 01:17:41]} {[%emt 00:03:05]} 25. Kf2 {[%clk 01:20:07]} {[%emt
00:01:39]} Ke7 {[%clk 01:17:36]} {[%emt 00:00:35]} 26. g4 {[%clk 01:19:44]}
{[%emt 00:00:53]} Rc5 {[%clk 01:17:24]} {[%emt 00:00:42]} 27. a4 {[%clk
01:17:45]} {[%emt 00:02:29]} Rd8 {[%clk 01:16:29]} {[%emt 00:01:24]} 28. Kg3
{[%clk 01:16:04]} {[%emt 00:02:11]} Rxd5 {[%clk 01:15:25]} {[%emt 00:01:35]} 29.
Rxd5 {[%clk 01:16:23]} {[%emt 00:00:11]} Kd7 {[%clk 01:13:57]} {[%emt
00:01:58]} 30. Kh4 {[%clk 01:15:13]} {[%emt 00:01:39]} Rg8 {[%clk 01:12:26]}
{[%emt 00:02:01]} 31. Kh5 {[%clk 01:13:58]} {[%emt 00:01:44]} h6 {[%clk
01:10:13]} {[%emt 00:02:44]} 32. Rb5 {[%clk 01:05:04]} {[%emt 00:09:25]} Kc6
{[%clk 01:08:44]} {[%emt 00:01:59]} 33. h4 {[%clk 01:03:32]} {[%emt 00:02:01]}
Rg6 {[%clk 01:00:19]} {[%emt 00:08:56]} 34. b4 {[%clk 01:00:50]} {[%emt
00:03:12]} axb4 {[%clk 01:00:11]} {[%emt 00:00:38]} 35. Rxb4 {[%clk 01:01:15]}
{[%emt 00:00:04]} Rg8 {[%clk 00:56:05]} {[%emt 00:04:36]} 36. Kxh6 {[%clk
00:59:29]} {[%emt 00:02:16]} Rh8 {[%clk 00:55:20]} {[%emt 00:01:14]} 37. Kg7
{[%clk 00:59:45]} {[%emt 00:00:15]} Rxh4 {[%clk 00:55:39]} {[%emt 00:00:10]} 38.
Kxf7 {[%clk 00:59:54]} {[%emt 00:00:21]} Rh8 {[%clk 00:49:02]} {[%emt
00:07:08]} 39. Kxf6 {[%clk 00:59:26]} {[%emt 00:00:58]} Rf8 {[%clk 00:48:10]}
{[%emt 00:01:22]} 40. Kg7 {[%clk 00:59:16]} {[%emt 00:00:40]} Rxf3 {[%clk
00:48:19]} {[%emt 00:00:20]} 41. g5 {[%clk 00:59:30]} {[%emt 00:00:17]} Rf4
{[%clk 00:46:10]} {[%emt 00:02:38]} 42. g6 {[%clk 00:59:07]} {[%emt 00:00:54]}
Rxe4 {[%clk 00:45:31]} {[%emt 00:01:08]} 43. Kg8 {[%clk 00:58:40]} {[%emt
00:00:58]} Rg4 {[%clk 00:39:01]} {[%emt 00:07:00]} 44. g7 {[%clk 00:58:40]}
{[%emt 00:00:30]} e4 {[%clk 00:37:44]} {[%emt 00:01:47]} 45. Rb3 {[%clk
00:58:32]} {[%emt 00:00:38]} e3 {[%clk 00:34:30]} {[%emt 00:03:44]} 46. Rxe3
{[%clk 00:58:18]} {[%emt 00:00:44]} Rxc4 {[%clk 00:34:49]} {[%emt 00:00:11]} 47.
Rg3 {[%clk 00:58:20]} {[%emt 00:00:28]} Rxa4 {[%clk 00:33:05]} {[%emt
00:02:14]} 48. Kh7 {[%clk 00:58:03]} {[%emt 00:00:46]} Ra7 {[%clk 00:30:45]}
{[%emt 00:02:46]} 49. Rc3+ {[%clk 00:56:26]} {[%emt 00:02:12]} Kd5 {[%clk
00:29:52]} {[%emt 00:01:23]} 50. Rd3+ {[%clk 00:56:42]} {[%emt 00:00:13]} Kc5
{[%clk 00:27:52]} {[%emt 00:02:31]} 51. Rc3+ {[%clk 00:56:58]} {[%emt
00:00:15]} Kd5 {[%clk 00:27:22]} {[%emt 00:00:59]} 52. Rd3+ {[%clk 00:53:26]}
{[%emt 00:04:02]} Kc5 {[%clk 00:26:57]} {[%emt 00:00:54]} 53. Rc3+ {[%clk
00:52:30]} {[%emt 00:01:27]} 1/2-1/2

[Event "ONJK 2024 ABC"]
[Site "Velp, Netherlands"]
[Date "2024.08.03"]
[Round "2.19"]
[White "Vogels, Mathijs"]
[Black "Kempkens, Mathilda"]
[Result "1-0"]
[TimeControl "90 minutes + 30 seconds"]
[WhiteElo "1732"]
[BlackElo "1530"]

1. e4 {[%clk 01:30:58]} {[%emt 00:00:02]} e5 {[%clk 01:30:41]} {[%emt
00:00:19]} 2. Nf3 {[%clk 01:31:23]} {[%emt 00:00:05]} Nc6 {[%clk 01:30:49]}
{[%emt 00:00:21]} 3. Bc4 {[%clk 01:31:48]} {[%emt 00:00:05]} Bc5 {[%clk
01:31:01]} {[%emt 00:00:18]} 4. c3 {[%clk 01:32:14]} {[%emt 00:00:05]} Nf6
{[%clk 01:31:09]} {[%emt 00:00:22]} 5. d4 {[%clk 01:32:39]} {[%emt 00:00:05]}
exd4 {[%clk 01:31:00]} {[%emt 00:00:39]} 6. cxd4 {[%clk 01:33:03]} {[%emt
00:00:05]} Bb4+ {[%clk 01:31:22]} {[%emt 00:00:09]} 7. Bd2 {[%clk 01:33:28]}
{[%emt 00:00:05]} Nxe4 {[%clk 01:31:23]} {[%emt 00:00:28]} 8. Bxb4 {[%clk
01:33:50]} {[%emt 00:00:08]} Nxb4 {[%clk 01:31:03]} {[%emt 00:00:49]} 9. Bxf7+
{[%clk 01:34:14]} {[%emt 00:00:07]} Kxf7 {[%clk 01:31:07]} {[%emt 00:00:25]} 10.
Qb3+ {[%clk 01:34:39]} {[%emt 00:00:06]} d5 {[%clk 01:30:04]} {[%emt 00:01:33]}
11. Ne5+ {[%clk 01:34:49]} {[%emt 00:00:21]} Ke6 {[%clk 01:30:07]} {[%emt
00:00:26]} 12. Qxb4 {[%clk 01:35:10]} {[%emt 00:00:10]} Qf8 {[%clk 01:30:20]}
{[%emt 00:00:16]} 13. Qxf8 {[%clk 01:35:01]} {[%emt 00:00:39]} Rxf8 {[%clk
01:30:37]} {[%emt 00:00:13]} 14. O-O {[%clk 01:35:11]} {[%emt 00:00:20]} Kd6
{[%clk 01:30:44]} {[%emt 00:00:21]} 15. Na3 {[%clk 01:35:08]} {[%emt 00:00:34]}
a6 {[%clk 01:29:28]} {[%emt 00:01:46]} 16. f3 {[%clk 01:33:33]} {[%emt
00:02:05]} Ng5 {[%clk 01:29:29]} {[%emt 00:00:29]} 17. Rfe1 {[%clk 01:33:37]}
{[%emt 00:00:26]} b6 {[%clk 01:25:12]} {[%emt 00:04:47]} 18. Rac1 {[%clk
01:32:20]} {[%emt 00:01:46]} Ne6 {[%clk 01:22:48]} {[%emt 00:02:54]} 19. Rc6+
{[%clk 01:30:55]} {[%emt 00:01:55]} Ke7 {[%clk 01:21:50]} {[%emt 00:01:29]} 20.
Ng4 {[%clk 01:30:37]} {[%emt 00:00:48]} Bd7 {[%clk 01:17:19]} {[%emt 00:05:01]}
21. Rxc7 {[%clk 01:30:42]} {[%emt 00:00:25]} Kd6 {[%clk 01:17:31]} {[%emt
00:00:17]} 22. Rc3 {[%clk 01:28:22]} {[%emt 00:02:51]} Nxd4 {[%clk 01:14:25]}
{[%emt 00:03:36]} 23. Rd3 {[%clk 01:27:01]} {[%emt 00:01:50]} Nf5 {[%clk
01:10:54]} {[%emt 00:04:02]} 24. Nc4+ {[%clk 01:24:43]} {[%emt 00:02:48]} Kc5
{[%clk 01:09:38]} {[%emt 00:01:45]} 25. Nce5 {[%clk 01:24:27]} {[%emt
00:00:46]} Be6 {[%clk 01:07:04]} {[%emt 00:03:05]} 26. Rc1+ {[%clk 01:23:03]}
{[%emt 00:01:54]} Kb5 {[%clk 01:05:33]} {[%emt 00:02:00]} 27. Rb3+ {[%clk
01:23:23]} {[%emt 00:00:11]} Ka4 {[%clk 01:03:51]} {[%emt 00:02:11]} 28. Rxb6
{[%clk 01:21:07]} {[%emt 00:02:46]} Nd4 {[%clk 00:48:15]} {[%emt 00:16:07]} 29.
Rd1 {[%clk 01:20:41]} {[%emt 00:00:56]} Bxg4 {[%clk 00:43:12]} {[%emt
00:05:33]} 30. Rxd4+ {[%clk 01:20:23]} {[%emt 00:00:49]} Ka5 {[%clk 00:43:10]}
{[%emt 00:00:31]} 31. Rdb4 {[%clk 01:19:59]} {[%emt 00:00:53]} Rfc8 {[%clk
00:40:42]} {[%emt 00:02:58]} 32. fxg4 {[%clk 01:19:28]} {[%emt 00:01:02]} Rc2
{[%clk 00:37:35]} {[%emt 00:03:37]} 33. Rb8 {[%clk 01:18:02]} {[%emt 00:01:56]}
Ra7 {[%clk 00:36:40]} {[%emt 00:01:25]} 34. R4b7 {[%clk 01:18:11]} {[%emt
00:00:21]} Rxb7 {[%clk 00:36:55]} {[%emt 00:00:15]} 35. Rxb7 {[%clk 01:18:34]}
{[%emt 00:00:07]} Re2 {[%clk 00:35:08]} {[%emt 00:02:17]} 36. Nc6+ {[%clk
01:18:56]} {[%emt 00:00:09]} Ka4 {[%clk 00:35:20]} {[%emt 00:00:17]} 37. Rb4#
{[%clk 01:18:50]} {[%emt 00:00:05]} 1-0

[Event "ONJK 2024 ABC"]
[Site "Velp, Netherlands"]
[Date "2024.08.03"]
[Round "2.20"]
[White "Van Orden, Max"]
[Black "Georgopoulos, Mylo"]
[Result "0-1"]
[TimeControl "90 minutes + 30 seconds"]
[WhiteElo "1205"]
[BlackElo "1776"]

1. d4 {[%clk 01:30:56]} {[%emt 00:00:04]} e6 {[%clk 01:30:57]} {[%emt
00:00:05]} 2. Bf4 {[%clk 01:31:02]} {[%emt 00:00:22]} Nf6 {[%clk 01:31:19]}
{[%emt 00:00:08]} 3. e3 {[%clk 01:30:57]} {[%emt 00:00:35]} c5 {[%clk
01:31:23]} {[%emt 00:00:27]} 4. Nf3 {[%clk 01:31:00]} {[%emt 00:00:27]} Nc6
{[%clk 01:31:41]} {[%emt 00:00:12]} 5. Bb5 {[%clk 01:30:52]} {[%emt 00:00:38]}
Qa5+ {[%clk 01:29:04]} {[%emt 00:03:07]} 6. Nc3 {[%clk 01:31:02]} {[%emt
00:00:19]} Nd5 {[%clk 01:29:25]} {[%emt 00:00:10]} 7. Qd2 {[%clk 01:30:54]}
{[%emt 00:00:38]} Nxc3 {[%clk 01:28:57]} {[%emt 00:00:57]} 8. Qxc3 {[%clk
01:31:10]} {[%emt 00:00:14]} Qxb5 {[%clk 01:29:18]} {[%emt 00:00:10]} 9. O-O-O
{[%clk 01:31:19]} {[%emt 00:00:20]} Nb4 {[%clk 01:29:01]} {[%emt 00:00:48]} 10.
Qa3 {[%clk 01:30:38]} {[%emt 00:01:11]} c4 {[%clk 01:28:21]} {[%emt 00:01:09]}
11. e4 {[%clk 01:29:01]} {[%emt 00:02:08]} Nd3+ {[%clk 01:28:25]} {[%emt
00:00:25]} 12. cxd3 {[%clk 01:29:07]} {[%emt 00:00:24]} Bxa3 {[%clk 01:28:49]}
{[%emt 00:00:07]} 13. bxa3 {[%clk 01:29:20]} {[%emt 00:00:17]} c3 {[%clk
01:29:09]} {[%emt 00:00:10]} 14. Rd2 {[%clk 01:26:22]} {[%emt 00:03:28]} cxd2+
{[%clk 01:29:17]} {[%emt 00:00:21]} 15. Nxd2 {[%clk 01:26:47]} {[%emt
00:00:03]} b6 {[%clk 01:28:56]} {[%emt 00:00:54]} 16. Kd1 {[%clk 01:26:35]}
{[%emt 00:00:42]} Qxd3 {[%clk 01:29:06]} {[%emt 00:00:20]} 17. Re1 {[%clk
01:26:54]} {[%emt 00:00:11]} Ba6 {[%clk 01:28:43]} {[%emt 00:00:53]} 18. Be3
{[%clk 01:26:55]} {[%emt 00:00:28]} Rc8 {[%clk 01:28:53]} {[%emt 00:00:20]} 19.
d5 {[%clk 01:26:48]} {[%emt 00:00:38]} Qc2# {[%clk 01:29:12]} {[%emt 00:00:11]}
0-1